[Event "Titled Tuesday Blitz April 05 Early 2022"]
[White "Le Ruyet, Leopold"]
[Black "Samant Aditya S"]
[WhiteFideId "645923"]
[BlackFideId "35080580"]
[WhiteElo "2276"]
[BlackElo "1916"]
[Result "0-1"]
[Round "07"]
[TimeControl "180+1"]
[Date "2022.04.05"]
[WhiteClock "0:00:03"]
[BlackClock "0:00:19"]

1. e4 {[%clk 0:03:00]}  c5 {[%clk 0:02:59]} 2. c3 {[%clk 0:03:00]}  d5 {[%clk 0:03:00]} 3. exd5 {[%clk 0:03:00]}  Qxd5 {[%clk 0:03:01]} 4. d4 {[%clk 0:03:00]}  Nc6 {[%clk 0:03:01]} 5. Nf3 {[%clk 0:02:59]}  Bf5 {[%clk 0:03:02]} 6. Be2 {[%clk 0:02:56]}  cxd4 {[%clk 0:03:02]} 7. cxd4 {[%clk 0:02:55]}  Bxb1 {[%clk 0:03:02]} 8. Rxb1 {[%clk 0:02:54]}  e6 {[%clk 0:03:03]} 9. a3 {[%clk 0:02:49]}  Nf6 {[%clk 0:03:02]} 10. O-O {[%clk 0:02:47]}  Bd6 {[%clk 0:03:03]} 11. h3 {[%clk 0:02:42]}  O-O {[%clk 0:03:01]} 12. Be3 {[%clk 0:02:41]}  Rac8 {[%clk 0:02:58]} 13. b4 {[%clk 0:02:32]}  Ne7 {[%clk 0:02:38]} 14. Nd2 {[%clk 0:02:15]}  Bb8 {[%clk 0:02:35]} 15. Bf3 {[%clk 0:02:11]}  Qd6 {[%clk 0:02:35]} 16. g3 {[%clk 0:02:11]}  Ned5 {[%clk 0:02:33]} 17. Qe1 {[%clk 0:01:47]}  Rc3 {[%clk 0:02:19]} 18. Bg2 {[%clk 0:01:00]}  Nxe3 {[%clk 0:01:50]} 19. fxe3 {[%clk 0:00:53]}  Qxg3 {[%clk 0:01:48]} 20. Qxg3 {[%clk 0:00:50]}  Bxg3 {[%clk 0:01:49]} 21. Rf3 {[%clk 0:00:37]}  Bb8 {[%clk 0:01:40]} 22. e4 {[%clk 0:00:30]}  Rxf3 {[%clk 0:01:36]} 23. Bxf3 {[%clk 0:00:31]}  Rd8 {[%clk 0:01:35]} 24. Nb3 {[%clk 0:00:29]}  b6 {[%clk 0:01:25]} 25. Kf2 {[%clk 0:00:28]}  Rc8 {[%clk 0:01:22]} 26. Ke2 {[%clk 0:00:23]}  Kf8 {[%clk 0:01:17]} 27. Kd3 {[%clk 0:00:22]}  Ke7 {[%clk 0:01:16]} 28. a4 {[%clk 0:00:19]}  g5 {[%clk 0:01:02]} 29. a5 {[%clk 0:00:14]}  h5 {[%clk 0:00:59]} 30. axb6 {[%clk 0:00:14]}  axb6 {[%clk 0:01:00]} 31. Ra1 {[%clk 0:00:13]}  g4 {[%clk 0:00:56]} 32. hxg4 {[%clk 0:00:14]}  hxg4 {[%clk 0:00:57]} 33. Be2 {[%clk 0:00:12]}  Rh8 {[%clk 0:00:40]} 34. Rg1 {[%clk 0:00:12]}  Rh3+ {[%clk 0:00:37]} 35. Kc2 {[%clk 0:00:12]}  g3 {[%clk 0:00:25]} 36. e5 {[%clk 0:00:12]}  Nd5 {[%clk 0:00:26]} 37. b5 {[%clk 0:00:10]}  Rh2 {[%clk 0:00:26]} 38. Nc1 {[%clk 0:00:03]}  Nf4 {[%clk 0:00:24]} 39. Kd1 {[%clk 0:00:03]}  g2 {[%clk 0:00:24]} 40. Bf3 {[%clk 0:00:03]}  Rh3 {[%clk 0:00:19]} 0-1


[Site "https://www.chess.com"]

[Event "Titled Tuesday Blitz April 05 Early 2022"]
[White "Madaminov, Mukhiddin"]
[Black "Moskvin, Anatoly"]
[WhiteFideId "14210703"]
[BlackFideId "24199990"]
[WhiteElo "1916"]
[BlackElo "2079"]
[Result "1-0"]
[Round "07"]
[TimeControl "180+1"]
[Date "2022.04.05"]
[WhiteClock "0:01:04"]
[BlackClock "0:00:04"]

1. e4 {[%clk 0:03:00]}  e5 {[%clk 0:02:59]} 2. Nf3 {[%clk 0:03:00]}  d5 {[%clk 0:03:00]} 3. Nxe5 {[%clk 0:02:59]}  Bd6 {[%clk 0:02:59]} 4. d4 {[%clk 0:02:52]}  dxe4 {[%clk 0:02:59]} 5. Nc4 {[%clk 0:02:46]}  Nf6 {[%clk 0:02:58]} 6. Nc3 {[%clk 0:02:45]}  Nc6 {[%clk 0:02:57]} 7. Be2 {[%clk 0:02:42]}  h6 {[%clk 0:02:53]} 8. Be3 {[%clk 0:02:42]}  O-O {[%clk 0:02:52]} 9. O-O {[%clk 0:02:42]}  Ne7 {[%clk 0:02:49]} 10. f3 {[%clk 0:02:34]}  exf3 {[%clk 0:02:29]} 11. Bxf3 {[%clk 0:02:33]}  Nf5 {[%clk 0:02:21]} 12. Bf2 {[%clk 0:02:32]}  Be6 {[%clk 0:02:12]} 13. Qd3 {[%clk 0:02:26]}  c6 {[%clk 0:02:08]} 14. Nxd6 {[%clk 0:02:12]}  Qxd6 {[%clk 0:01:57]} 15. Rae1 {[%clk 0:02:11]}  Rad8 {[%clk 0:01:53]} 16. Rd1 {[%clk 0:02:08]}  Qb4 {[%clk 0:01:26]} 17. b3 {[%clk 0:02:06]}  Qa5 {[%clk 0:01:01]} 18. Ne4 {[%clk 0:01:59]}  Nxe4 {[%clk 0:00:25]} 19. Bxe4 {[%clk 0:02:00]}  Nd6 {[%clk 0:00:23]} 20. Bf3 {[%clk 0:01:58]}  Bf5 {[%clk 0:00:23]} 21. Qd2 {[%clk 0:01:57]}  Qxa2 {[%clk 0:00:22]} 22. Rc1 {[%clk 0:01:36]}  Rfe8 {[%clk 0:00:22]} 23. Bh4 {[%clk 0:01:35]}  f6 {[%clk 0:00:21]} 24. Qb4 {[%clk 0:01:31]}  Nb5 {[%clk 0:00:17]} 25. c3 {[%clk 0:01:29]}  Qd2 {[%clk 0:00:16]} 26. Rfd1 {[%clk 0:01:26]}  Qe3+ {[%clk 0:00:16]} 27. Bf2 {[%clk 0:01:27]}  Qg5 {[%clk 0:00:17]} 28. c4 {[%clk 0:01:27]}  Nd6 {[%clk 0:00:16]} 29. d5 {[%clk 0:01:27]}  Be4 {[%clk 0:00:16]} 30. Rc3 {[%clk 0:01:05]}  Bxf3 {[%clk 0:00:16]} 31. Rxf3 {[%clk 0:01:06]}  Ne4 {[%clk 0:00:16]} 32. Bxa7 {[%clk 0:01:04]}  cxd5 {[%clk 0:00:15]} 33. cxd5 {[%clk 0:01:04]}  Rxd5 {[%clk 0:00:16]} 34. Qc4 {[%clk 0:01:04]}  Nc3 {[%clk 0:00:09]} 35. Rxc3 {[%clk 0:01:02]}  Rd8 {[%clk 0:00:04]} 36. Rxd5 {[%clk 0:01:03]}  Qxd5 {[%clk 0:00:04]} 37. Rd3 {[%clk 0:01:03]}  Qxc4 {[%clk 0:00:04]} 38. Rxd8+ {[%clk 0:01:04]} 1-0


[Site "https://www.chess.com"]

[Event "Titled Tuesday Blitz April 05 Early 2022"]
[White "Manolache, Marius"]
[Black "Aaditya Dhingra"]
[WhiteFideId "1201530"]
[BlackFideId "25678191"]
[WhiteElo "2364"]
[BlackElo "1849"]
[Result "0-1"]
[Round "07"]
[TimeControl "180+1"]
[Date "2022.04.05"]
[WhiteClock "0:00:01"]
[BlackClock "0:00:07"]

1. d4 {[%clk 0:02:58]}  Nf6 {[%clk 0:02:58]} 2. c4 {[%clk 0:02:57]}  e6 {[%clk 0:02:58]} 3. Nc3 {[%clk 0:02:55]}  Bb4 {[%clk 0:02:58]} 4. e3 {[%clk 0:02:54]}  c5 {[%clk 0:02:57]} 5. Nf3 {[%clk 0:02:53]}  Nc6 {[%clk 0:02:56]} 6. Bd2 {[%clk 0:02:52]}  cxd4 {[%clk 0:02:52]} 7. exd4 {[%clk 0:02:52]}  d5 {[%clk 0:02:53]} 8. a3 {[%clk 0:02:52]}  Be7 {[%clk 0:02:49]} 9. cxd5 {[%clk 0:02:50]}  Nxd5 {[%clk 0:02:48]} 10. Bb5 {[%clk 0:02:48]}  O-O {[%clk 0:02:46]} 11. O-O {[%clk 0:02:48]}  Nxc3 {[%clk 0:02:43]} 12. bxc3 {[%clk 0:02:48]}  Bd7 {[%clk 0:02:43]} 13. Bd3 {[%clk 0:02:46]}  Bf6 {[%clk 0:02:41]} 14. h4 {[%clk 0:02:43]}  h6 {[%clk 0:02:35]} 15. Qe2 {[%clk 0:02:42]}  Ne7 {[%clk 0:02:23]} 16. Ne5 {[%clk 0:02:38]}  Bxe5 {[%clk 0:01:54]} 17. Qxe5 {[%clk 0:02:37]}  Bc6 {[%clk 0:01:54]} 18. Qg3 {[%clk 0:02:36]}  Nf5 {[%clk 0:01:52]} 19. Bxf5 {[%clk 0:02:34]}  exf5 {[%clk 0:01:53]} 20. Bxh6 {[%clk 0:02:34]}  Qf6 {[%clk 0:01:49]} 21. Bf4 {[%clk 0:02:34]}  Rac8 {[%clk 0:01:42]} 22. c4 {[%clk 0:02:30]}  Be4 {[%clk 0:01:38]} 23. c5 {[%clk 0:02:29]}  Rfd8 {[%clk 0:01:33]} 24. Rfe1 {[%clk 0:02:23]}  Rc6 {[%clk 0:01:26]} 25. Be5 {[%clk 0:02:09]}  Qh6 {[%clk 0:01:25]} 26. Qg5 {[%clk 0:02:09]}  Rd5 {[%clk 0:01:07]} 27. f3 {[%clk 0:02:03]}  Bd3 {[%clk 0:01:05]} 28. Qxh6 {[%clk 0:01:59]}  Rxh6 {[%clk 0:01:01]} 29. Rad1 {[%clk 0:01:56]}  Bb5 {[%clk 0:00:58]} 30. g3 {[%clk 0:01:50]}  Re6 {[%clk 0:00:55]} 31. Kf2 {[%clk 0:01:47]}  Ra6 {[%clk 0:00:47]} 32. Re3 {[%clk 0:01:44]}  Ra4 {[%clk 0:00:47]} 33. Rb1 {[%clk 0:01:38]}  Bc6 {[%clk 0:00:46]} 34. h5 {[%clk 0:01:17]}  f6 {[%clk 0:00:46]} 35. Bf4 {[%clk 0:01:15]}  Raxd4 {[%clk 0:00:39]} 36. Rc3 {[%clk 0:01:05]}  Rd3 {[%clk 0:00:35]} 37. Rbb3 {[%clk 0:01:02]}  Rd1 {[%clk 0:00:29]} 38. Rb2 {[%clk 0:00:45]}  R5d3 {[%clk 0:00:24]} 39. Rbb3 {[%clk 0:00:43]}  Rd5 {[%clk 0:00:22]} 40. Be3 {[%clk 0:00:41]}  Rh1 {[%clk 0:00:20]} 41. Kg2 {[%clk 0:00:35]}  Rxh5 {[%clk 0:00:19]} 42. Rd3 {[%clk 0:00:33]}  Kf7 {[%clk 0:00:18]} 43. Rxd5 {[%clk 0:00:31]}  Bxd5 {[%clk 0:00:18]} 44. Rd3 {[%clk 0:00:31]}  Bc6 {[%clk 0:00:17]} 45. Rd8 {[%clk 0:00:28]}  g5 {[%clk 0:00:17]} 46. Kg1 {[%clk 0:00:27]}  Bxf3 {[%clk 0:00:15]} 47. Rd6 {[%clk 0:00:21]}  Rh1+ {[%clk 0:00:13]} 48. Kf2 {[%clk 0:00:21]}  Be4 {[%clk 0:00:14]} 49. Bd4 {[%clk 0:00:21]}  Rh2+ {[%clk 0:00:14]} 50. Ke1 {[%clk 0:00:22]}  Ke7 {[%clk 0:00:13]} 51. Bxf6+ {[%clk 0:00:21]}  Kf7 {[%clk 0:00:13]} 52. Bxg5 {[%clk 0:00:21]}  Ra2 {[%clk 0:00:12]} 53. Bc1 {[%clk 0:00:20]}  Rg2 {[%clk 0:00:10]} 54. Bf4 {[%clk 0:00:19]}  Rc2 {[%clk 0:00:10]} 55. Be3 {[%clk 0:00:17]}  Rc3 {[%clk 0:00:09]} 56. Kd2 {[%clk 0:00:17]}  Rxa3 {[%clk 0:00:08]} 57. Rd4 {[%clk 0:00:15]}  Ra2+ {[%clk 0:00:08]} 58. Kd1 {[%clk 0:00:13]}  Rg2 {[%clk 0:00:08]} 59. Bf4 {[%clk 0:00:12]}  a5 {[%clk 0:00:08]} 60. Rd8 {[%clk 0:00:11]}  a4 {[%clk 0:00:07]} 61. Ra8 {[%clk 0:00:08]}  Ra2 {[%clk 0:00:07]} 62. Bc1 {[%clk 0:00:01]}  Bc6 {[%clk 0:00:07]} 0-1


[Site "https://www.chess.com"]

[Event "Titled Tuesday Blitz April 05 Early 2022"]
[White "Manukian, Artak"]
[Black "Postnikov, Daniil"]
[WhiteFideId "13301373"]
[BlackFideId "4166329"]
[WhiteElo "2364"]
[BlackElo "2261"]
[Result "0-1"]
[Round "07"]
[TimeControl "180+1"]
[Date "2022.04.05"]
[WhiteClock "0:01:18"]
[BlackClock "0:00:44"]

1. e4 {[%clk 0:03:00]}  e6 {[%clk 0:02:26]} 2. d4 {[%clk 0:02:58]}  d5 {[%clk 0:02:24]} 3. e5 {[%clk 0:02:57]}  c5 {[%clk 0:02:23]} 4. c3 {[%clk 0:02:58]}  Nc6 {[%clk 0:02:14]} 5. Nf3 {[%clk 0:02:57]}  Bd7 {[%clk 0:02:09]} 6. Be2 {[%clk 0:02:53]}  f6 {[%clk 0:01:58]} 7. O-O {[%clk 0:02:51]}  fxe5 {[%clk 0:01:57]} 8. Nxe5 {[%clk 0:02:51]}  Nxe5 {[%clk 0:01:55]} 9. dxe5 {[%clk 0:02:52]}  Qc7 {[%clk 0:01:55]} 10. Bf4 {[%clk 0:02:45]}  O-O-O {[%clk 0:01:51]} 11. b4 {[%clk 0:02:32]}  h6 {[%clk 0:01:41]} 12. Bg3 {[%clk 0:02:29]}  Kb8 {[%clk 0:01:26]} 13. Nd2 {[%clk 0:02:27]}  Ne7 {[%clk 0:01:22]} 14. bxc5 {[%clk 0:02:26]}  Nf5 {[%clk 0:01:19]} 15. Nb3 {[%clk 0:02:25]}  Bxc5 {[%clk 0:01:18]} 16. Nxc5 {[%clk 0:02:24]}  Qxc5 {[%clk 0:01:17]} 17. Rb1 {[%clk 0:02:23]}  g5 {[%clk 0:01:10]} 18. Qb3 {[%clk 0:02:12]}  b6 {[%clk 0:01:05]} 19. Bg4 {[%clk 0:02:01]}  Nxg3 {[%clk 0:01:02]} 20. hxg3 {[%clk 0:02:02]}  h5 {[%clk 0:01:02]} 21. Bf3 {[%clk 0:01:57]}  Rc8 {[%clk 0:00:59]} 22. Rbc1 {[%clk 0:01:51]}  Bb5 {[%clk 0:00:53]} 23. Rfd1 {[%clk 0:01:50]}  g4 {[%clk 0:00:51]} 24. c4 {[%clk 0:01:18]}  dxc4 {[%clk 0:00:44]} 0-1


[Site "https://www.chess.com"]

[Event "Titled Tuesday Blitz April 05 Early 2022"]
[White "Martin Carmona, Gaston Manuel"]
[Black "Avazkhonov, Alikhon"]
[WhiteFideId "22284567"]
[BlackFideId "14208504"]
[WhiteElo "2146"]
[BlackElo "1739"]
[Result "1-0"]
[Round "07"]
[TimeControl "180+1"]
[Date "2022.04.05"]
[WhiteClock "0:00:31"]
[BlackClock "0:00:03"]

1. d4 {[%clk 0:03:00]}  d5 {[%clk 0:02:53]} 2. c4 {[%clk 0:03:00]}  e6 {[%clk 0:02:54]} 3. Nf3 {[%clk 0:02:58]}  c6 {[%clk 0:02:54]} 4. g3 {[%clk 0:02:55]}  dxc4 {[%clk 0:02:53]} 5. Bg2 {[%clk 0:02:56]}  Nf6 {[%clk 0:02:53]} 6. O-O {[%clk 0:02:55]}  Be7 {[%clk 0:02:50]} 7. Ne5 {[%clk 0:02:56]}  O-O {[%clk 0:02:45]} 8. Nxc4 {[%clk 0:02:56]}  c5 {[%clk 0:02:44]} 9. dxc5 {[%clk 0:02:52]}  Bxc5 {[%clk 0:02:45]} 10. Qc2 {[%clk 0:02:49]}  Nc6 {[%clk 0:02:36]} 11. Rd1 {[%clk 0:02:38]}  Nd4 {[%clk 0:01:59]} 12. Qd3 {[%clk 0:02:33]}  Qc7 {[%clk 0:02:00]} 13. Bf4 {[%clk 0:02:31]}  Qe7 {[%clk 0:01:54]} 14. b4 {[%clk 0:02:26]}  Rd8 {[%clk 0:01:39]} 15. bxc5 {[%clk 0:01:04]}  e5 {[%clk 0:00:58]} 16. Bxe5 {[%clk 0:00:53]}  Bf5 {[%clk 0:00:36]} 17. e4 {[%clk 0:00:40]}  Bg4 {[%clk 0:00:10]} 18. Bd6 {[%clk 0:00:40]}  Ne2+ {[%clk 0:00:03]} 19. Kf1 {[%clk 0:00:35]}  Qe6 {[%clk 0:00:03]} 20. Nbd2 {[%clk 0:00:31]} 1-0


[Site "https://www.chess.com"]

[Event "Titled Tuesday Blitz April 05 Early 2022"]
[White "Mikhnenko, Alexander"]
[Black "Pischal, Yulia"]
[WhiteFideId "34143014"]
[BlackFideId "14102390"]
[WhiteElo "2117"]
[BlackElo "1931"]
[Result "0-1"]
[Round "07"]
[TimeControl "180+1"]
[Date "2022.04.05"]
[WhiteClock "0:01:03"]
[BlackClock "0:01:10"]

1. e4 {[%clk 0:03:00]}  c5 {[%clk 0:02:59]} 2. Nf3 {[%clk 0:03:00]}  d6 {[%clk 0:02:59]} 3. d4 {[%clk 0:02:59]}  cxd4 {[%clk 0:02:59]} 4. Nxd4 {[%clk 0:03:00]}  Nf6 {[%clk 0:02:59]} 5. Nc3 {[%clk 0:03:00]}  Nc6 {[%clk 0:02:57]} 6. Bg5 {[%clk 0:03:00]}  e6 {[%clk 0:02:55]} 7. Qd3 {[%clk 0:03:00]}  Be7 {[%clk 0:02:53]} 8. O-O-O {[%clk 0:02:59]}  Nxd4 {[%clk 0:02:51]} 9. Qxd4 {[%clk 0:02:59]}  O-O {[%clk 0:02:52]} 10. f4 {[%clk 0:02:57]}  a6 {[%clk 0:02:49]} 11. g4 {[%clk 0:02:55]}  Qc7 {[%clk 0:02:48]} 12. Qd3 {[%clk 0:02:49]}  Rd8 {[%clk 0:02:44]} 13. Bh4 {[%clk 0:02:40]}  b5 {[%clk 0:02:42]} 14. Bg2 {[%clk 0:02:40]}  Bb7 {[%clk 0:02:41]} 15. Bf3 {[%clk 0:02:39]}  b4 {[%clk 0:02:41]} 16. Ne2 {[%clk 0:02:38]}  a5 {[%clk 0:02:30]} 17. g5 {[%clk 0:02:37]}  Nd7 {[%clk 0:02:26]} 18. Bf2 {[%clk 0:02:36]}  Nc5 {[%clk 0:02:25]} 19. Bxc5 {[%clk 0:02:35]}  Qxc5 {[%clk 0:02:25]} 20. h4 {[%clk 0:02:34]}  Rdc8 {[%clk 0:02:21]} 21. h5 {[%clk 0:02:33]}  Ba6 {[%clk 0:02:21]} 22. Qd2 {[%clk 0:02:32]}  a4 {[%clk 0:02:19]} 23. Kb1 {[%clk 0:02:28]}  Bc4 {[%clk 0:02:11]} 24. g6 {[%clk 0:02:26]}  fxg6 {[%clk 0:02:11]} 25. hxg6 {[%clk 0:02:26]}  h6 {[%clk 0:02:11]} 26. f5 {[%clk 0:02:22]}  Bf6 {[%clk 0:02:06]} 27. Qxd6 {[%clk 0:02:00]}  b3 {[%clk 0:01:49]} 28. Qxc5 {[%clk 0:01:36]}  bxa2+ {[%clk 0:01:45]} 29. Ka1 {[%clk 0:01:35]}  Rxc5 {[%clk 0:01:46]} 30. e5 {[%clk 0:01:26]}  Bxe2 {[%clk 0:01:29]} 31. Bxa8 {[%clk 0:01:20]}  Bxd1 {[%clk 0:01:29]} 32. Rxd1 {[%clk 0:01:21]}  Rxe5 {[%clk 0:01:24]} 33. fxe6 {[%clk 0:01:16]}  Kf8 {[%clk 0:01:21]} 34. Bd5 {[%clk 0:01:10]}  a3 {[%clk 0:01:18]} 35. Kxa2 {[%clk 0:01:08]}  axb2 {[%clk 0:01:17]} 36. Bb3 {[%clk 0:01:03]}  Ra5+ {[%clk 0:01:10]} 0-1


[Site "https://www.chess.com"]

[Event "Titled Tuesday Blitz April 05 Early 2022"]
[White "Mohammadian, Mohammad"]
[Black "Rosenberg, Evan S"]
[WhiteFideId "12566055"]
[BlackFideId "2019299"]
[WhiteElo "1544"]
[BlackElo "2263"]
[Result "0-1"]
[Round "07"]
[TimeControl "180+1"]
[Date "2022.04.05"]
[WhiteClock "0:00:00"]
[BlackClock "0:00:28"]

1. e4 {[%clk 0:03:00]}  e5 {[%clk 0:02:59]} 2. Nf3 {[%clk 0:03:00]}  Nc6 {[%clk 0:02:26]} 3. Bb5 {[%clk 0:02:59]}  Nf6 {[%clk 0:02:25]} 4. O-O {[%clk 0:02:57]}  Nxe4 {[%clk 0:02:24]} 5. Re1 {[%clk 0:02:57]}  Nd6 {[%clk 0:02:23]} 6. Bxc6 {[%clk 0:02:55]}  dxc6 {[%clk 0:02:23]} 7. Nxe5 {[%clk 0:02:54]}  Be7 {[%clk 0:02:24]} 8. d4 {[%clk 0:02:49]}  O-O {[%clk 0:02:24]} 9. Bf4 {[%clk 0:02:41]}  Nf5 {[%clk 0:02:12]} 10. c3 {[%clk 0:02:38]}  Re8 {[%clk 0:02:11]} 11. Nd2 {[%clk 0:02:32]}  c5 {[%clk 0:02:09]} 12. dxc5 {[%clk 0:02:23]}  Bxc5 {[%clk 0:02:08]} 13. Qc2 {[%clk 0:02:19]}  Be6 {[%clk 0:01:50]} 14. Red1 {[%clk 0:02:04]}  Qh4 {[%clk 0:01:36]} 15. Bg3 {[%clk 0:01:12]}  Nxg3 {[%clk 0:01:29]} 16. hxg3 {[%clk 0:01:09]}  Qxg3 {[%clk 0:01:30]} 17. Ne4 {[%clk 0:01:06]}  Qxe5 {[%clk 0:01:29]} 18. Nxc5 {[%clk 0:01:02]}  Qxc5 {[%clk 0:01:29]} 19. Rd4 {[%clk 0:01:02]}  Rad8 {[%clk 0:01:28]} 20. Rad1 {[%clk 0:01:01]}  Rxd4 {[%clk 0:01:27]} 21. Rxd4 {[%clk 0:01:01]}  g6 {[%clk 0:01:27]} 22. Qd2 {[%clk 0:00:56]}  c6 {[%clk 0:01:20]} 23. b4 {[%clk 0:00:55]}  Qe5 {[%clk 0:01:12]} 24. a4 {[%clk 0:00:50]}  Bd5 {[%clk 0:01:08]} 25. c4 {[%clk 0:00:42]}  Qe1+ {[%clk 0:01:08]} 26. Qxe1 {[%clk 0:00:38]}  Rxe1+ {[%clk 0:01:09]} 27. Kh2 {[%clk 0:00:38]}  Be6 {[%clk 0:01:08]} 28. b5 {[%clk 0:00:35]}  c5 {[%clk 0:01:06]} 29. Rd8+ {[%clk 0:00:28]}  Kg7 {[%clk 0:01:06]} 30. a5 {[%clk 0:00:25]}  Bxc4 {[%clk 0:01:05]} 31. Rb8 {[%clk 0:00:24]}  Bxb5 {[%clk 0:01:04]} 32. Rxb7 {[%clk 0:00:25]}  a6 {[%clk 0:01:04]} 33. Rc7 {[%clk 0:00:21]}  c4 {[%clk 0:01:04]} 34. Kg3 {[%clk 0:00:14]}  Ra1 {[%clk 0:01:03]} 35. f4 {[%clk 0:00:11]}  Rxa5 {[%clk 0:01:03]} 36. f5 {[%clk 0:00:11]}  gxf5 {[%clk 0:00:59]} 37. Rc5 {[%clk 0:00:10]}  Kg6 {[%clk 0:00:48]} 38. Kf4 {[%clk 0:00:09]}  Ra2 {[%clk 0:00:45]} 39. g4 {[%clk 0:00:04]}  fxg4 {[%clk 0:00:39]} 40. Kxg4 {[%clk 0:00:03]}  Re2 {[%clk 0:00:36]} 41. Rg5+ {[%clk 0:00:01]}  Kf6 {[%clk 0:00:34]} 42. Rc5 {[%clk 0:00:00]}  Re5 {[%clk 0:00:28]} 0-1


[Site "https://www.chess.com"]

[Event "Titled Tuesday Blitz April 05 Early 2022"]
[White "Petrova, Irina"]
[Black "Jaskolka, Tomasz"]
[WhiteFideId "14124122"]
[BlackFideId "1170791"]
[WhiteElo "1993"]
[BlackElo "2073"]
[Result "0-1"]
[Round "07"]
[TimeControl "180+1"]
[Date "2022.04.05"]
[WhiteClock "0:00:33"]
[BlackClock "0:00:22"]

1. e4 {[%clk 0:02:52]}  c5 {[%clk 0:02:59]} 2. Nf3 {[%clk 0:02:52]}  e6 {[%clk 0:03:00]} 3. b3 {[%clk 0:02:51]}  d5 {[%clk 0:02:55]} 4. exd5 {[%clk 0:02:50]}  exd5 {[%clk 0:02:56]} 5. Bb5+ {[%clk 0:02:50]}  Bd7 {[%clk 0:02:48]} 6. Bxd7+ {[%clk 0:02:43]}  Qxd7 {[%clk 0:02:47]} 7. O-O {[%clk 0:02:44]}  Be7 {[%clk 0:02:47]} 8. d4 {[%clk 0:02:43]}  Bf6 {[%clk 0:02:28]} 9. Ne5 {[%clk 0:02:17]}  Bxe5 {[%clk 0:02:26]} 10. dxe5 {[%clk 0:02:18]}  Nc6 {[%clk 0:02:26]} 11. Nc3 {[%clk 0:02:12]}  Nge7 {[%clk 0:02:22]} 12. Bg5 {[%clk 0:01:49]}  O-O {[%clk 0:02:14]} 13. Bxe7 {[%clk 0:01:49]}  Nxe7 {[%clk 0:02:12]} 14. Qf3 {[%clk 0:01:43]}  Rad8 {[%clk 0:02:07]} 15. Rad1 {[%clk 0:01:42]}  Qe6 {[%clk 0:01:56]} 16. Rfe1 {[%clk 0:01:39]}  b6 {[%clk 0:01:52]} 17. Nb5 {[%clk 0:01:33]}  Rd7 {[%clk 0:01:18]} 18. a4 {[%clk 0:01:27]}  Rfd8 {[%clk 0:01:15]} 19. h3 {[%clk 0:01:21]}  Nc6 {[%clk 0:01:09]} 20. Qg3 {[%clk 0:01:18]}  a6 {[%clk 0:00:59]} 21. Nc3 {[%clk 0:01:17]}  Nd4 {[%clk 0:00:54]} 22. Qd3 {[%clk 0:00:49]}  Qg6 {[%clk 0:00:47]} 23. Qxa6 {[%clk 0:00:47]}  Nf3+ {[%clk 0:00:46]} 24. Kh1 {[%clk 0:00:47]}  Nxe1 {[%clk 0:00:46]} 25. Rxe1 {[%clk 0:00:48]}  Qxc2 {[%clk 0:00:46]} 26. Nb5 {[%clk 0:00:45]}  Qxf2 {[%clk 0:00:45]} 27. Rg1 {[%clk 0:00:40]}  d4 {[%clk 0:00:30]} 28. Qxb6 {[%clk 0:00:40]}  d3 {[%clk 0:00:30]} 29. Nd6 {[%clk 0:00:40]}  d2 {[%clk 0:00:24]} 30. Qxc5 {[%clk 0:00:33]}  Qxc5 {[%clk 0:00:22]} 0-1


[Site "https://www.chess.com"]